[Event "Early-Titled-Tuesday-Blitz-September-26-2023"]
[Site "Chess.com"]
[Date "2023.09.26"]
[Round "8"]
[White "Zampronha1971"]
[Black "ajedrezhoy"]
[Result "1/2-1/2"]
[WhiteElo "2273"]
[BlackElo "2381"]
[TimeControl "180+1"]
[EndTime "9:30:55 PDT"]
[Termination "Game drawn by repetition"]

1. e4 {[%clk 0:03:00.9]} 1... Nf6 {[%clk 0:02:59.5]} 2. e5 {[%clk 0:03:00.7]}
2... Nd5 {[%clk 0:02:59.3]} 3. d4 {[%clk 0:03:01.6]} 3... d6 {[%clk 0:02:59.2]}
4. c4 {[%clk 0:03:02.5]} 4... Nb6 {[%clk 0:02:59.3]} 5. exd6 {[%clk 0:03:03.4]}
5... cxd6 {[%clk 0:02:59.6]} 6. Nc3 {[%clk 0:03:03.7]} 6... g6 {[%clk
0:02:59.9]} 7. Be3 {[%clk 0:03:03.1]} 7... Bg7 {[%clk 0:03:00]} 8. Rc1 {[%clk
0:03:03.7]} 8... O-O {[%clk 0:03:00.1]} 9. b3 {[%clk 0:03:04]} 9... Bf5 {[%clk
0:02:59.9]} 10. Nf3 {[%clk 0:02:57.5]} 10... d5 {[%clk 0:02:56.8]} 11. c5 {[%clk
0:02:55.9]} 11... N6d7 {[%clk 0:02:54.5]} 12. Nxd5 {[%clk 0:02:52.4]} 12... Nc6
{[%clk 0:02:49]} 13. Nc3 {[%clk 0:02:49.2]} 13... e5 {[%clk 0:02:40.8]} 14. d5
{[%clk 0:02:47.9]} 14... Nd4 {[%clk 0:02:40.7]} 15. Nxd4 {[%clk 0:02:44.8]}
15... exd4 {[%clk 0:02:40]} 16. Bxd4 {[%clk 0:02:45.2]} 16... Re8+ {[%clk
0:02:36.5]} 17. Be2 {[%clk 0:02:45.3]} 17... Qh4 {[%clk 0:02:17.4]} 18. Bxg7
{[%clk 0:02:42.8]} 18... Kxg7 {[%clk 0:02:17.5]} 19. O-O {[%clk 0:02:40.3]}
19... Nxc5 {[%clk 0:02:17.3]} 20. Qd2 {[%clk 0:02:26.9]} 20... Rad8 {[%clk
0:02:05.2]} 21. Nb5 {[%clk 0:02:21.4]} 21... Ne4 {[%clk 0:01:57.4]} 22. Qd4+
{[%clk 0:02:20.2]} 22... Kg8 {[%clk 0:01:57.4]} 23. f3 {[%clk 0:02:14.9]} 23...
a6 {[%clk 0:01:52.9]} 24. Nc7 {[%clk 0:01:49.4]} 24... Qf6 {[%clk 0:01:50.3]}
25. Qxf6 {[%clk 0:01:48.3]} 25... Nxf6 {[%clk 0:01:50.2]} 26. Nxe8 {[%clk
0:01:48.4]} 26... Rxe8 {[%clk 0:01:49.6]} 27. Rfe1 {[%clk 0:01:39]} 27... Nxd5
{[%clk 0:01:49.1]} 28. Bc4 {[%clk 0:01:38.6]} 28... Rd8 {[%clk 0:01:47.5]} 29.
Rcd1 {[%clk 0:01:30.3]} 29... Be6 {[%clk 0:01:47.5]} 30. Bxd5 {[%clk 0:01:29.7]}
30... Rxd5 {[%clk 0:01:45.7]} 31. Rxd5 {[%clk 0:01:29.4]} 31... Bxd5 {[%clk
0:01:46]} 32. Re7 {[%clk 0:01:29.5]} 32... Kf8 {[%clk 0:01:44.1]} 33. Rc7 {[%clk
0:01:28.5]} 33... Kg7 {[%clk 0:01:42.1]} 34. Kf2 {[%clk 0:01:27.3]} 34... Kf6
{[%clk 0:01:42.2]} 35. Ke3 {[%clk 0:01:27.4]} 35... Ke6 {[%clk 0:01:42.3]} 36.
Rc8 {[%clk 0:01:24.4]} 36... h5 {[%clk 0:01:40.7]} 37. h4 {[%clk 0:01:21.3]}
37... Bc6 {[%clk 0:01:40.2]} 38. g4 {[%clk 0:01:14.8]} 38... hxg4 {[%clk
0:01:33.6]} 39. fxg4 {[%clk 0:01:15.7]} 39... f5 {[%clk 0:01:31.7]} 40. h5
{[%clk 0:01:06.3]} 40... gxh5 {[%clk 0:01:30.3]} 41. gxh5 {[%clk 0:01:06.1]}
41... Ke5 {[%clk 0:01:30.7]} 42. h6 {[%clk 0:00:32.6]} 42... f4+ {[%clk
0:01:30.6]} 43. Kf2 {[%clk 0:00:32.9]} 43... Kf6 {[%clk 0:01:30.8]} 44. Rg8
{[%clk 0:00:27.6]} 44... Be4 {[%clk 0:01:29.2]} 45. Rg7 {[%clk 0:00:26.7]} 45...
a5 {[%clk 0:01:27.7]} 46. Rc7 {[%clk 0:00:26.1]} 46... Kg6 {[%clk 0:01:26]} 47.
Rc4 {[%clk 0:00:23.7]} 47... Bb1 {[%clk 0:01:24.5]} 48. a3 {[%clk 0:00:21.9]}
48... Kxh6 {[%clk 0:01:23.2]} 49. Rxf4 {[%clk 0:00:22.1]} 49... Kg6 {[%clk
0:01:20.3]} 50. Ke1 {[%clk 0:00:20.8]} 50... Kg5 {[%clk 0:01:17.3]} 51. Rf7
{[%clk 0:00:19.1]} 51... Be4 {[%clk 0:01:16.6]} 52. Re7 {[%clk 0:00:18.3]} 52...
Kf5 {[%clk 0:01:14.9]} 53. Kd2 {[%clk 0:00:18.4]} 53... Bd5 {[%clk 0:01:13.5]}
54. Kc3 {[%clk 0:00:17.8]} 54... Kf6 {[%clk 0:01:13.7]} 55. Re1 {[%clk
0:00:18.1]} 55... Be6 {[%clk 0:01:12.7]} 56. b4 {[%clk 0:00:17.9]} 56... axb4+
{[%clk 0:01:11.9]} 57. axb4 {[%clk 0:00:17.6]} 57... Ke7 {[%clk 0:01:11.9]} 58.
Kd4 {[%clk 0:00:18.2]} 58... Kd6 {[%clk 0:01:11.9]} 59. Rc1 {[%clk 0:00:18.4]}
59... Bd5 {[%clk 0:01:10.5]} 60. Rg1 {[%clk 0:00:18.4]} 60... Bc6 {[%clk
0:01:10.3]} 61. Rg6+ {[%clk 0:00:18.8]} 61... Kc7 {[%clk 0:01:10.2]} 62. Kc5
{[%clk 0:00:17.7]} 62... b6+ {[%clk 0:01:10.4]} 63. Kd4 {[%clk 0:00:18.3]} 63...
Bf3 {[%clk 0:01:09.8]} 64. Rg5 {[%clk 0:00:18.2]} 64... Bh1 {[%clk 0:01:08.9]}
65. b5 {[%clk 0:00:18.5]} 65... Bf3 {[%clk 0:01:08.4]} 66. Rg7+ {[%clk
0:00:18.5]} 66... Kc8 {[%clk 0:01:07.9]} 67. Ke5 {[%clk 0:00:17.7]} 67... Bh1
{[%clk 0:01:07.1]} 68. Kd6 {[%clk 0:00:16.6]} 68... Bf3 {[%clk 0:01:06.9]} 69.
Rc7+ {[%clk 0:00:16.5]} 69... Kb8 {[%clk 0:01:06.3]} 70. Rf7 {[%clk 0:00:16.3]}
70... Bg2 {[%clk 0:01:06.2]} 71. Rf8+ {[%clk 0:00:15.1]} 71... Kb7 {[%clk
0:01:05.5]} 72. Rg8 {[%clk 0:00:15.1]} 72... Bf3 {[%clk 0:01:05.5]} 73. Rg7+
{[%clk 0:00:15.6]} 73... Kb8 {[%clk 0:01:05.4]} 74. Rc7 {[%clk 0:00:15.1]} 74...
Bg2 {[%clk 0:01:04.7]} 75. Rc2 {[%clk 0:00:13]} 75... Bf3 {[%clk 0:01:04.6]} 76.
Kd7 {[%clk 0:00:12.6]} 76... Be4 {[%clk 0:01:04]} 77. Rc6 {[%clk 0:00:12.5]}
77... Bf3 {[%clk 0:01:02.2]} 78. Kd6 {[%clk 0:00:12.9]} 78... Kb7 {[%clk
0:01:03.1]} 79. Rc7+ {[%clk 0:00:12.5]} 79... Kb8 {[%clk 0:01:02.9]} 80. Rc6
{[%clk 0:00:13]} 80... Kb7 {[%clk 0:01:02.1]} 81. Rc3 {[%clk 0:00:11.3]} 81...
Be4 {[%clk 0:01:01.5]} 82. Rg3 {[%clk 0:00:11.5]} 82... Bh1 {[%clk 0:01:01.2]}
83. Rg7+ {[%clk 0:00:11.5]} 83... Kb8 {[%clk 0:01:00.9]} 84. Kd7 {[%clk
0:00:09.6]} 84... Bf3 {[%clk 0:00:59.5]} 85. Rg3 {[%clk 0:00:07.9]} 85... Be4
{[%clk 0:00:59.5]} 86. Rc3 {[%clk 0:00:08.3]} 86... Bg2 {[%clk 0:00:58.7]} 87.
Rc6 {[%clk 0:00:07.7]} 87... Kb7 {[%clk 0:00:57.7]} 88. Rc7+ {[%clk 0:00:08]}
88... Kb8 {[%clk 0:00:57.5]} 89. Rc2 {[%clk 0:00:08.5]} 89... Bf3 {[%clk
0:00:57.2]} 90. Rd2 {[%clk 0:00:08.5]} 90... Be4 {[%clk 0:00:57.2]} 91. Kd6
{[%clk 0:00:08.9]} 91... Bf3 {[%clk 0:00:57]} 92. Rf2 {[%clk 0:00:09.4]} 92...
Be4 {[%clk 0:00:57]} 93. Rf7 {[%clk 0:00:09.8]} 93... Bg2 {[%clk 0:00:55.9]} 94.
Rg7 {[%clk 0:00:10.3]} 94... Bf3 {[%clk 0:00:56]} 95. Rg3 {[%clk 0:00:08.1]}
95... Be4 {[%clk 0:00:56.1]} 96. Ra3 {[%clk 0:00:08.6]} 96... Kb7 {[%clk
0:00:55.6]} 97. Re3 {[%clk 0:00:08.1]} 97... Bg2 {[%clk 0:00:55.6]} 98. Re7+
{[%clk 0:00:08.6]} 98... Kb8 {[%clk 0:00:55.3]} 99. Re5 {[%clk 0:00:08.1]} 99...
Bf3 {[%clk 0:00:55.1]} 100. Rg5 {[%clk 0:00:07.7]} 100... Be4 {[%clk 0:00:55]}
101. Rg7 {[%clk 0:00:07.6]} 101... Bf3 {[%clk 0:00:54.4]} 1/2-1/2

[Event "Early-Titled-Tuesday-Blitz-September-26-2023"]
[Site "Chess.com"]
[Date "2023.09.26"]
[Round "8"]
[White "SargissyanSargis"]
[Black "Doomfist26"]
[Result "1-0"]
[WhiteElo "2438"]
[BlackElo "2579"]
[TimeControl "180+1"]
[EndTime "9:31:04 PDT"]
[Termination "SargissyanSargis won by checkmate"]

1. e4 {[%clk 0:03:00.9]} 1... e6 {[%clk 0:02:56.6]} 2. d4 {[%clk 0:03:00.3]}
2... d5 {[%clk 0:02:57.5]} 3. Nc3 {[%clk 0:02:59.1]} 3... Nf6 {[%clk 0:02:57.1]}
4. Bg5 {[%clk 0:02:57.3]} 4... Be7 {[%clk 0:02:57.1]} 5. e5 {[%clk 0:02:57.6]}
5... Nfd7 {[%clk 0:02:57.2]} 6. Bxe7 {[%clk 0:02:58.1]} 6... Qxe7 {[%clk
0:02:57.8]} 7. f4 {[%clk 0:02:58.8]} 7... O-O {[%clk 0:02:56.5]} 8. Nf3 {[%clk
0:02:59.4]} 8... c5 {[%clk 0:02:56.9]} 9. Qd2 {[%clk 0:03:00]} 9... Nc6 {[%clk
0:02:56]} 10. dxc5 {[%clk 0:02:54.9]} 10... Nxc5 {[%clk 0:02:54.1]} 11. Bd3
{[%clk 0:02:55.5]} 11... Nxd3+ {[%clk 0:02:53.2]} 12. cxd3 {[%clk 0:02:53]}
12... a6 {[%clk 0:02:49.1]} 13. d4 {[%clk 0:02:52.1]} 13... b5 {[%clk
0:02:47.8]} 14. O-O {[%clk 0:02:50.6]} 14... Bb7 {[%clk 0:02:47.7]} 15. f5
{[%clk 0:02:50.5]} 15... b4 {[%clk 0:02:39.3]} 16. Na4 {[%clk 0:02:35.9]} 16...
exf5 {[%clk 0:02:37.2]} 17. Nc5 {[%clk 0:02:31.1]} 17... Bc8 {[%clk 0:02:34.1]}
18. Rac1 {[%clk 0:02:24.4]} 18... a5 {[%clk 0:02:31.7]} 19. Qf4 {[%clk
0:02:19.1]} 19... Nd8 {[%clk 0:02:28.9]} 20. Nh4 {[%clk 0:02:16.9]} 20... g6
{[%clk 0:02:22.9]} 21. Qh6 {[%clk 0:02:08.6]} 21... f6 {[%clk 0:02:07.9]} 22.
Rfe1 {[%clk 0:01:58.7]} 22... Nf7 {[%clk 0:02:04]} 23. Qd2 {[%clk 0:01:56.7]}
23... fxe5 {[%clk 0:02:04.1]} 24. dxe5 {[%clk 0:01:57]} 24... Qxh4 {[%clk
0:02:03.7]} 25. Qxd5 {[%clk 0:01:56.2]} 25... Ra7 {[%clk 0:01:19]} 26. e6 {[%clk
0:01:55.3]} 26... Bxe6 {[%clk 0:01:19.5]} 27. Nxe6 {[%clk 0:01:55.3]} 27... Re8
{[%clk 0:01:15.8]} 28. g3 {[%clk 0:01:34.8]} 28... Qf6 {[%clk 0:01:07.7]} 29. h4
{[%clk 0:01:19.8]} 29... Rae7 {[%clk 0:01:06.1]} 30. Rc6 {[%clk 0:01:18.6]}
30... Qxb2 {[%clk 0:00:49.8]} 31. Re3 {[%clk 0:00:57.1]} 31... Rxe6 {[%clk
0:00:21.5]} 32. Rcxe6 {[%clk 0:00:53.2]} 32... Qc1+ {[%clk 0:00:20.7]} 33. Re1
{[%clk 0:00:51.3]} 33... Qxe1+ {[%clk 0:00:20.3]} 34. Rxe1 {[%clk 0:00:50.5]}
34... Rxe1+ {[%clk 0:00:21.2]} 35. Kf2 {[%clk 0:00:51.2]} 35... Rc1 {[%clk
0:00:18.1]} 36. Qxa5 {[%clk 0:00:43.3]} 36... Rc2+ {[%clk 0:00:17.3]} 37. Ke3
{[%clk 0:00:42.9]} 37... Rb2 {[%clk 0:00:18.1]} 38. Qd5 {[%clk 0:00:41]} 38...
Kf8 {[%clk 0:00:16]} 39. h5 {[%clk 0:00:39.2]} 39... Rb1 {[%clk 0:00:09.8]} 40.
Qd4 {[%clk 0:00:33.7]} 40... Re1+ {[%clk 0:00:09.4]} 41. Kf2 {[%clk 0:00:33.8]}
41... Rb1 {[%clk 0:00:08.5]} 42. Qf6 {[%clk 0:00:30.3]} 42... gxh5 {[%clk
0:00:05.4]} 43. Kf3 {[%clk 0:00:28]} 43... Rf1+ {[%clk 0:00:04.9]} 44. Kg2
{[%clk 0:00:28.2]} 44... Rb1 {[%clk 0:00:05]} 45. Kh3 {[%clk 0:00:28.4]} 45...
Rh1+ {[%clk 0:00:04.2]} 46. Kg2 {[%clk 0:00:28.5]} 46... Rb1 {[%clk 0:00:04.9]}
47. Kf2 {[%clk 0:00:18.8]} 47... Kg8 {[%clk 0:00:04.3]} 48. Kf3 {[%clk
0:00:13.7]} 48... Rf1+ {[%clk 0:00:03.9]} 49. Ke2 {[%clk 0:00:14.3]} 49... Rg1
{[%clk 0:00:02.6]} 50. Kf2 {[%clk 0:00:10.4]} 50... Rh1 {[%clk 0:00:02.2]} 51.
Qxf5 {[%clk 0:00:09.6]} 51... Rh2+ {[%clk 0:00:02.5]} 52. Kf3 {[%clk 0:00:07.9]}
52... Rxa2 {[%clk 0:00:03.4]} 53. Qc8+ {[%clk 0:00:07.8]} 53... Kg7 {[%clk
0:00:03.6]} 54. Qc4 {[%clk 0:00:06.8]} 54... Ra3+ {[%clk 0:00:03.6]} 55. Kf4
{[%clk 0:00:07.3]} 55... b3 {[%clk 0:00:03.2]} 56. Qc3+ {[%clk 0:00:07.2]} 56...
Kg6 {[%clk 0:00:02.9]} 57. Qd3+ {[%clk 0:00:06.2]} 57... Kg7 {[%clk 0:00:03.1]}
58. Qc3+ {[%clk 0:00:06.8]} 58... Kg8 {[%clk 0:00:03.6]} 59. Qb2 {[%clk
0:00:06.7]} 59... Ra4+ {[%clk 0:00:03.5]} 60. Kf3 {[%clk 0:00:07]} 60... Rb4
{[%clk 0:00:03.9]} 61. Qc3 {[%clk 0:00:04.8]} 61... Rb8 {[%clk 0:00:04.4]} 62.
Qb2 {[%clk 0:00:05.1]} 62... Ng5+ {[%clk 0:00:04.4]} 63. Kf4 {[%clk 0:00:05.5]}
63... Ne6+ {[%clk 0:00:05]} 64. Ke5 {[%clk 0:00:04.7]} 64... Kf7 {[%clk
0:00:05.3]} 65. Qf2+ {[%clk 0:00:04.1]} 65... Kg7 {[%clk 0:00:03.2]} 66. Qf6+
{[%clk 0:00:02.7]} 66... Kg8 {[%clk 0:00:02.8]} 67. Qxe6+ {[%clk 0:00:03.3]}
67... Kh8 {[%clk 0:00:03.5]} 68. Qf6+ {[%clk 0:00:03.6]} 68... Kg8 {[%clk
0:00:04.2]} 69. Qg5+ {[%clk 0:00:03.7]} 69... Kh8 {[%clk 0:00:04.6]} 70. Kf6
{[%clk 0:00:01.3]} 70... Rb6+ {[%clk 0:00:04.6]} 71. Ke7 {[%clk 0:00:01.6]}
71... Rb7+ {[%clk 0:00:04.6]} 72. Kf8 {[%clk 0:00:01.4]} 72... Rb8+ {[%clk
0:00:04.7]} 73. Ke7 {[%clk 0:00:01.9]} 73... Rb7+ {[%clk 0:00:05.2]} 74. Kd6
{[%clk 0:00:02.4]} 74... b2 {[%clk 0:00:04]} 75. Qe5+ {[%clk 0:00:02.7]} 75...
Kg8 {[%clk 0:00:04.1]} 76. Qd5+ {[%clk 0:00:03]} 76... Kf8 {[%clk 0:00:03.7]}
77. Qxb7 {[%clk 0:00:03.6]} 77... h4 {[%clk 0:00:03]} 78. Qxb2 {[%clk
0:00:03.7]} 78... hxg3 {[%clk 0:00:03.9]} 79. Ke6 {[%clk 0:00:03.5]} 79... g2
{[%clk 0:00:03.7]} 80. Kf6 {[%clk 0:00:03.2]} 80... g1=Q {[%clk 0:00:02.9]} 81.
Qb8# {[%clk 0:00:02.9]} 1-0

[Event "Early-Titled-Tuesday-Blitz-September-26-2023"]
[Site "Chess.com"]
[Date "2023.09.26"]
[Round "8"]
[White "ATM622"]
[Black "borocotoajua"]
[Result "1/2-1/2"]
[WhiteElo "2422"]
[BlackElo "2572"]
[TimeControl "180+1"]
[EndTime "9:31:20 PDT"]
[Termination "Game drawn by repetition"]

1. d4 {[%clk 0:03:00.9]} 1... Nf6 {[%clk 0:02:59.8]} 2. c4 {[%clk 0:02:56.8]}
2... g6 {[%clk 0:03:00.1]} 3. g3 {[%clk 0:02:57.2]} 3... Bg7 {[%clk 0:02:59.2]}
4. Bg2 {[%clk 0:02:57.7]} 4... d6 {[%clk 0:02:59.9]} 5. Nf3 {[%clk 0:02:58.4]}
5... O-O {[%clk 0:03:00.6]} 6. O-O {[%clk 0:02:59]} 6... c5 {[%clk 0:03:01]} 7.
d5 {[%clk 0:02:59]} 7... e5 {[%clk 0:02:50.8]} 8. dxe6 {[%clk 0:02:54]} 8...
fxe6 {[%clk 0:02:50.9]} 9. Nc3 {[%clk 0:02:52.8]} 9... Nc6 {[%clk 0:02:47.1]}
10. e4 {[%clk 0:02:46.8]} 10... e5 {[%clk 0:02:43.7]} 11. Bg5 {[%clk 0:02:38.4]}
11... Bg4 {[%clk 0:02:39.1]} 12. h3 {[%clk 0:02:33.6]} 12... Bxf3 {[%clk
0:02:38.9]} 13. Bxf3 {[%clk 0:02:34]} 13... Nd4 {[%clk 0:02:39.3]} 14. Bg2
{[%clk 0:02:33.7]} 14... h6 {[%clk 0:02:27]} 15. Be3 {[%clk 0:02:33.6]} 15...
Rb8 {[%clk 0:02:20.9]} 16. a4 {[%clk 0:02:31.6]} 16... Qa5 {[%clk 0:02:11.1]}
17. Nb5 {[%clk 0:02:17.9]} 17... a6 {[%clk 0:01:57.1]} 18. Bd2 {[%clk
0:02:05.7]} 18... Qd8 {[%clk 0:01:53.7]} 19. Nc3 {[%clk 0:02:05.7]} 19... Qd7
{[%clk 0:01:48.2]} 20. a5 {[%clk 0:02:03.7]} 20... Rf7 {[%clk 0:01:46.1]} 21.
Nd5 {[%clk 0:01:57.8]} 21... Rbf8 {[%clk 0:01:36.8]} 22. b4 {[%clk 0:01:54.5]}
22... Nxd5 {[%clk 0:01:31.1]} 23. cxd5 {[%clk 0:01:51.5]} 23... Nf3+ {[%clk
0:01:28]} 24. Kh1 {[%clk 0:01:51.5]} 24... Nxd2 {[%clk 0:01:26]} 25. Qxd2 {[%clk
0:01:51.4]} 25... cxb4 {[%clk 0:01:26.9]} 26. Rab1 {[%clk 0:01:46.6]} 26... Qb5
{[%clk 0:01:20.1]} 27. Qxb4 {[%clk 0:01:42.8]} 27... Qxb4 {[%clk 0:01:01.7]} 28.
Rxb4 {[%clk 0:01:42]} 28... Rxf2 {[%clk 0:01:01.6]} 29. Rxf2 {[%clk 0:01:42.4]}
29... Rxf2 {[%clk 0:01:02.4]} 30. Rxb7 {[%clk 0:01:42.5]} 30... Ra2 {[%clk
0:01:03.1]} 31. Rd7 {[%clk 0:01:30.6]} 31... Bf8 {[%clk 0:01:00.7]} 32. h4
{[%clk 0:01:28.9]} 32... Ra1+ {[%clk 0:01:00]} 33. Kh2 {[%clk 0:01:28.7]} 33...
Ra2 {[%clk 0:01:00.9]} 34. Kh1 {[%clk 0:01:27.9]} 34... Ra1+ {[%clk 0:00:57.8]}
35. Kh2 {[%clk 0:01:28.5]} 35... Ra2 {[%clk 0:00:58.3]} 36. Kg1 {[%clk
0:01:29.2]} 36... h5 {[%clk 0:00:54]} 37. Bh3 {[%clk 0:01:26.5]} 37... Rxa5
{[%clk 0:00:50.8]} 38. Be6+ {[%clk 0:01:24.7]} 38... Kh8 {[%clk 0:00:51]} 39.
Rd8 {[%clk 0:01:23.1]} 39... Kg7 {[%clk 0:00:49]} 40. Rd7+ {[%clk 0:01:15.3]}
40... Kh6 {[%clk 0:00:39.9]} 41. Bg8 {[%clk 0:01:15.1]} 41... Bg7 {[%clk
0:00:39.3]} 42. Rxd6 {[%clk 0:01:15]} 42... Ra3 {[%clk 0:00:38.2]} 43. Kg2
{[%clk 0:01:14.6]} 43... Bf8 {[%clk 0:00:34.6]} 44. Rd8 {[%clk 0:01:11.8]} 44...
Kg7 {[%clk 0:00:33.8]} 45. Be6 {[%clk 0:01:11.9]} 45... a5 {[%clk 0:00:33]} 46.
Rd7+ {[%clk 0:01:09.1]} 46... Kh6 {[%clk 0:00:32.5]} 47. Rf7 {[%clk 0:01:04.4]}
47... Bc5 {[%clk 0:00:29.2]} 48. Rc7 {[%clk 0:00:59]} 48... Ra2+ {[%clk
0:00:22.8]} 49. Kf1 {[%clk 0:00:56.9]} 49... Rf2+ {[%clk 0:00:20]} 50. Ke1
{[%clk 0:00:56.8]} 50... Bd4 {[%clk 0:00:17.6]} 51. d6 {[%clk 0:00:53.8]} 51...
Rf8 {[%clk 0:00:17.4]} 52. d7 {[%clk 0:00:37.9]} 52... Bb6 {[%clk 0:00:16.8]}
53. Rb7 {[%clk 0:00:28.3]} 53... Bd8 {[%clk 0:00:17]} 54. Ke2 {[%clk 0:00:26.6]}
54... Kg7 {[%clk 0:00:16.6]} 55. Ra7 {[%clk 0:00:17.5]} 55... Kf6 {[%clk
0:00:15.8]} 56. Ra6 {[%clk 0:00:17.7]} 56... Ke7 {[%clk 0:00:16]} 57. Bh3 {[%clk
0:00:16.6]} 57... Rf6 {[%clk 0:00:16.4]} 58. Ra8 {[%clk 0:00:05.2]} 58... Rb6
{[%clk 0:00:16.2]} 59. Kd3 {[%clk 0:00:03]} 59... Rb4 {[%clk 0:00:15.2]} 60. Kc3
{[%clk 0:00:03]} 60... Rd4 {[%clk 0:00:13.4]} 61. Bg2 {[%clk 0:00:02.1]} 61...
a4 {[%clk 0:00:11.7]} 62. Ra6 {[%clk 0:00:01.9]} 62... Kf7 {[%clk 0:00:05.4]}
63. Bh3 {[%clk 0:00:02.1]} 63... Kg7 {[%clk 0:00:04.8]} 64. Be6 {[%clk
0:00:02.8]} 64... Kf8 {[%clk 0:00:03.2]} 65. Ra8 {[%clk 0:00:02.3]} 65... Ke7
{[%clk 0:00:03.4]} 66. Bh3 {[%clk 0:00:03.2]} 66... Rd6 {[%clk 0:00:03.6]} 67.
Rxa4 {[%clk 0:00:03]} 67... Rd1 {[%clk 0:00:01.6]} 68. Kc2 {[%clk 0:00:03.1]}
68... Rg1 {[%clk 0:00:01.6]} 69. Ra3 {[%clk 0:00:03.7]} 69... Re1 {[%clk
0:00:01.8]} 70. Kd2 {[%clk 0:00:03.5]} 70... Rb1 {[%clk 0:00:01.9]} 71. Ke2
{[%clk 0:00:03.2]} 71... Rb2+ {[%clk 0:00:02.4]} 72. Kf3 {[%clk 0:00:03.5]}
72... Rb6 {[%clk 0:00:03.3]} 73. Bf1 {[%clk 0:00:03.1]} 73... Rf6+ {[%clk
0:00:04.2]} 74. Kg2 {[%clk 0:00:02.9]} 74... Bb6 {[%clk 0:00:05.1]} 75. Bb5
{[%clk 0:00:03]} 75... Rf2+ {[%clk 0:00:05.2]} 76. Kh3 {[%clk 0:00:03.7]} 76...
Rf6 {[%clk 0:00:04.7]} 77. Ra6 {[%clk 0:00:03.8]} 77... Bd8 {[%clk 0:00:05.5]}
78. Ra8 {[%clk 0:00:04]} 78... Rf2 {[%clk 0:00:05.3]} 79. Bc4 {[%clk 0:00:04.1]}
79... Rc2 {[%clk 0:00:05.4]} 80. Bb5 {[%clk 0:00:03.3]} 80... Rc5 {[%clk
0:00:05.5]} 81. Ba4 {[%clk 0:00:03]} 81... Rc4 {[%clk 0:00:05.2]} 82. Kg2 {[%clk
0:00:02.3]} 82... Rxe4 {[%clk 0:00:05]} 83. Kf3 {[%clk 0:00:02.9]} 83... Rd4
{[%clk 0:00:05.4]} 84. Ke3 {[%clk 0:00:02.7]} 84... Rd6 {[%clk 0:00:05.4]} 85.
Bb5 {[%clk 0:00:02.5]} 85... Rd5 {[%clk 0:00:04.5]} 86. Bc6 {[%clk 0:00:02]}
86... Rd4 {[%clk 0:00:04.8]} 87. Ba4 {[%clk 0:00:02.2]} 87... Rb4 {[%clk
0:00:04.7]} 88. Kd3 {[%clk 0:00:02.4]} 88... Rd4+ {[%clk 0:00:04.7]} 89. Ke3
{[%clk 0:00:02.8]} 1/2-1/2

[Event "Early-Titled-Tuesday-Blitz-September-26-2023"]
[Site "Chess.com"]
[Date "2023.09.26"]
[Round "9"]
[White "Nasrin_Babayeva"]
[Black "Zampronha1971"]
[Result "0-1"]
[WhiteElo "1885"]
[BlackElo "2275"]
[TimeControl "180+1"]
[EndTime "9:39:25 PDT"]
[Termination "Zampronha1971 won by resignation"]

1. c4 {[%clk 0:02:58.1]} 1... Nf6 {[%clk 0:02:59.4]} 2. g3 {[%clk 0:02:58.4]}
2... e6 {[%clk 0:02:59.8]} 3. Bg2 {[%clk 0:02:58.7]} 3... d5 {[%clk 0:03:00.5]}
4. Nf3 {[%clk 0:02:59.5]} 4... Be7 {[%clk 0:02:59.4]} 5. O-O {[%clk 0:03:00.1]}
5... d4 {[%clk 0:02:57.7]} 6. b3 {[%clk 0:03:00.4]} 6... c5 {[%clk 0:02:58.4]}
7. e3 {[%clk 0:02:58.5]} 7... Nc6 {[%clk 0:02:58.3]} 8. e4 {[%clk 0:02:57.9]}
8... Nxe4 {[%clk 0:02:55.8]} 9. d3 {[%clk 0:02:57]} 9... Nf6 {[%clk 0:02:55.6]}
10. Re1 {[%clk 0:02:55.3]} 10... O-O {[%clk 0:02:55.2]} 11. a3 {[%clk
0:02:55.9]} 11... Re8 {[%clk 0:02:45.5]} 12. Bb2 {[%clk 0:02:56.8]} 12... Bf8
{[%clk 0:02:42.8]} 13. b4 {[%clk 0:02:54.8]} 13... cxb4 {[%clk 0:02:41.8]} 14.
axb4 {[%clk 0:02:48.1]} 14... Bxb4 {[%clk 0:02:42.7]} 0-1

[Event "Early-Titled-Tuesday-Blitz-September-26-2023"]
[Site "Chess.com"]
[Date "2023.09.26"]
[Round "9"]
[White "FMStan15"]
[Black "wild3000"]
[Result "1-0"]
[WhiteElo "2120"]
[BlackElo "2277"]
[TimeControl "180+1"]
[EndTime "9:40:58 PDT"]
[Termination "FMStan15 won by checkmate"]

1. e4 {[%clk 0:03:00.9]} 1... a6 {[%clk 0:02:59.5]} 2. d4 {[%clk 0:03:00.2]}
2... b5 {[%clk 0:02:59.7]} 3. a4 {[%clk 0:02:59.6]} 3... Bb7 {[%clk 0:02:58.4]}
4. Bd3 {[%clk 0:02:54.6]} 4... b4 {[%clk 0:02:58.2]} 5. Nf3 {[%clk 0:02:53.8]}
5... e6 {[%clk 0:02:58.7]} 6. O-O {[%clk 0:02:53.1]} 6... d5 {[%clk 0:02:58.7]}
7. e5 {[%clk 0:02:53]} 7... c5 {[%clk 0:02:58.9]} 8. c3 {[%clk 0:02:52.9]} 8...
c4 {[%clk 0:02:59.2]} 9. Be2 {[%clk 0:02:53]} 9... b3 {[%clk 0:02:53.8]} 10. h4
{[%clk 0:02:49.2]} 10... Nc6 {[%clk 0:02:50.2]} 11. h5 {[%clk 0:02:49.2]} 11...
h6 {[%clk 0:02:49.7]} 12. Nh2 {[%clk 0:02:47.9]} 12... Be7 {[%clk 0:02:48.7]}
13. f4 {[%clk 0:02:47.7]} 13... Bh4 {[%clk 0:02:46]} 14. f5 {[%clk 0:02:43.9]}
14... Nge7 {[%clk 0:02:40.7]} 15. fxe6 {[%clk 0:02:43.3]} 15... fxe6 {[%clk
0:02:40.8]} 16. Bg4 {[%clk 0:02:43.5]} 16... Kd7 {[%clk 0:02:40.2]} 17. Bxe6+
{[%clk 0:02:35.3]} 17... Kc7 {[%clk 0:02:38.3]} 18. Qg4 {[%clk 0:02:29.4]} 18...
Bg5 {[%clk 0:02:33]} 19. Bxg5 {[%clk 0:02:28.6]} 19... hxg5 {[%clk 0:02:33.9]}
20. Qxg5 {[%clk 0:02:28.5]} 20... Rf8 {[%clk 0:02:33.2]} 21. Nd2 {[%clk
0:02:22.9]} 21... Rxf1+ {[%clk 0:02:26.1]} 22. Rxf1 {[%clk 0:02:20.7]} 22... Qh8
{[%clk 0:02:26.6]} 23. Rf7 {[%clk 0:02:14.7]} 23... Kb6 {[%clk 0:02:24.3]} 24.
Rxe7 {[%clk 0:02:07.2]} 24... Nxe7 {[%clk 0:02:25.2]} 25. Qxe7 {[%clk
0:02:07.2]} 25... Rd8 {[%clk 0:02:16.8]} 26. Qc5# {[%clk 0:02:05.9]} 1-0